﻿Body Name,Body,Service,Expense Type,Date Paid,Transaction Ref,Invoice Amount,Supplier Name
South Holland District Council,http://statistics.data.gov.uk/id/local-authority/32UF,Corporate,Payroll - Post Graduate Loan Repayment,12/04/2022,30014261,94.00 ,HM Revenue and Customs
South Holland District Council,http://statistics.data.gov.uk/id/local-authority/32UF,Asset and Property,Buildings Maintenance - Programmed,07/04/2022,30013812,600.00 ,Tyrrell Contractors Ltd
South Holland District Council,http://statistics.data.gov.uk/id/local-authority/32UF,Asset and Property,Buildings Maintenance - Programmed,12/04/2022,30014328,"4,420.50 ",Kirkys KOI
South Holland District Council,http://statistics.data.gov.uk/id/local-authority/32UF,Asset and Property,Buildings Maintenance - Responsive,26/04/2022,30013886,"1,547.94 ",Wybone Ltd
South Holland District Council,http://statistics.data.gov.uk/id/local-authority/32UF,Asset and Property,Buildings Maintenance - Responsive,05/04/2022,30014078,"2,162.16 ",Stannah
South Holland District Council,http://statistics.data.gov.uk/id/local-authority/32UF,Asset and Property,Buildings Maintenance - Responsive,28/04/2022,30014115,"20,650.00 ",Alfred Bagnall & Sons (East Midlands) Ltd
South Holland District Council,http://statistics.data.gov.uk/id/local-authority/32UF,Asset and Property,Buildings Maintenance - Responsive,05/04/2022,30014119,572.67 ,Warics Ltd
South Holland District Council,http://statistics.data.gov.uk/id/local-authority/32UF,Asset and Property,Buildings Maintenance - Responsive,12/04/2022,30014228,"1,035.00 ",Tyrrell Contractors Ltd
South Holland District Council,http://statistics.data.gov.uk/id/local-authority/32UF,Asset and Property,Buildings Maintenance - Responsive,12/04/2022,30014318,"1,761.50 ",GBSG Ltd
South Holland District Council,http://statistics.data.gov.uk/id/local-authority/32UF,Asset and Property,Buildings Maintenance - Responsive,28/04/2022,30014799,680.00 ,E.ON Energy Solutions Ltd
South Holland District Council,http://statistics.data.gov.uk/id/local-authority/32UF,Asset and Property,Buildings Maintenance - Responsive,28/04/2022,30014801,780.00 ,E.ON Energy Solutions Ltd
South Holland District Council,http://statistics.data.gov.uk/id/local-authority/32UF,Asset and Property,Buildings Maintenance - Responsive,28/04/2022,30014838,651.92 ,H20 Nationwide Limited
South Holland District Council,http://statistics.data.gov.uk/id/local-authority/32UF,Asset and Property,Electricity,05/04/2022,30014057,"4,116.93 ",Total Energies
South Holland District Council,http://statistics.data.gov.uk/id/local-authority/32UF,Asset and Property,Electricity,05/04/2022,30014059,"4,185.03 ",Total Energies
South Holland District Council,http://statistics.data.gov.uk/id/local-authority/32UF,Asset and Property,Electricity,28/04/2022,30014254,"1,370.65 ",NPower
South Holland District Council,http://statistics.data.gov.uk/id/local-authority/32UF,Asset and Property,Electricity,21/04/2022,30014568,"1,175.52 ",E.on Next
South Holland District Council,http://statistics.data.gov.uk/id/local-authority/32UF,Asset and Property,Electricity,26/04/2022,30014616,"4,803.83 ",E.on Next
South Holland District Council,http://statistics.data.gov.uk/id/local-authority/32UF,Asset and Property,Furniture and Equipment,28/04/2022,30014795,972.00 ,E.ON Energy Solutions Ltd
South Holland District Council,http://statistics.data.gov.uk/id/local-authority/32UF,Asset and Property,Gas,14/04/2022,30013739,"1,523.25 ",Espo Gas and Electricity
South Holland District Council,http://statistics.data.gov.uk/id/local-authority/32UF,Asset and Property,Professional and Contractors Fees,21/04/2022,30013707,"3,750.00 ",NPS Peterborough Ltd
South Holland District Council,http://statistics.data.gov.uk/id/local-authority/32UF,Asset and Property,Water and Sewerage Charges,19/04/2022,30014439,648.06 ,Wave
South Holland District Council,http://statistics.data.gov.uk/id/local-authority/32UF,Asset and Property,Water and Sewerage Charges,26/04/2022,30014594,648.53 ,Flint Bishop Solicitors
South Holland District Council,http://statistics.data.gov.uk/id/local-authority/32UF,Building Control,Professional and Contractors Fees,28/04/2022,30014201,"1,370.00 ",Navitas EAS
South Holland District Council,http://statistics.data.gov.uk/id/local-authority/32UF,Chief Executive,Agency Staff,26/04/2022,30014651,502.50 ,Pay Stream My Max 3 Limited
South Holland District Council,http://statistics.data.gov.uk/id/local-authority/32UF,Chief Executive,Agency Staff,26/04/2022,30014652,502.50 ,Pay Stream My Max 3 Limited
South Holland District Council,http://statistics.data.gov.uk/id/local-authority/32UF,Chief Executive,Agency Staff,26/04/2022,30014653,"1,440.50 ",Pay Stream My Max 3 Limited
South Holland District Council,http://statistics.data.gov.uk/id/local-authority/32UF,Chief Executive,Agency Staff,26/04/2022,30014654,536.00 ,Pay Stream My Max 3 Limited
South Holland District Council,http://statistics.data.gov.uk/id/local-authority/32UF,Chief Executive,Agency Staff,26/04/2022,30014658,469.00 ,Pay Stream My Max 3 Limited
South Holland District Council,http://statistics.data.gov.uk/id/local-authority/32UF,Chief Executive,Agency Staff,28/04/2022,30014891,536.00 ,Pay Stream My Max 3 Limited
South Holland District Council,http://statistics.data.gov.uk/id/local-authority/32UF,Chief Executive,Shared Management,12/04/2022,30013930,"13,051.26 ",Breckland Council
South Holland District Council,http://statistics.data.gov.uk/id/local-authority/32UF,Chief Executive,Shared Management,12/04/2022,30013980,"15,121.50 ",Breckland Council
South Holland District Council,http://statistics.data.gov.uk/id/local-authority/32UF,Commercialisation - Plan & Building Control,Professional and Contractors Fees,14/04/2022,30013934,"6,807.77 ",Boston Borough Council
South Holland District Council,http://statistics.data.gov.uk/id/local-authority/32UF,Community Development,Advertising - Events,21/04/2022,30014393,500.00 ,Heritage Trust of Lincolnshire Ltd
South Holland District Council,http://statistics.data.gov.uk/id/local-authority/32UF,Community Development,Agency Staff,28/04/2022,30014789,123.14 ,Quality Service Recruitment Ltd
South Holland District Council,http://statistics.data.gov.uk/id/local-authority/32UF,Community Development,Electricity,07/04/2022,30013805,"1,923.01 ",Total Energies
South Holland District Council,http://statistics.data.gov.uk/id/local-authority/32UF,Community Development,Electricity,07/04/2022,30013817,"2,796.31 ",Total Energies
South Holland District Council,http://statistics.data.gov.uk/id/local-authority/32UF,Community Development,Electricity,07/04/2022,30014058,"2,946.72 ",Total Energies
South Holland District Council,http://statistics.data.gov.uk/id/local-authority/32UF,Community Development,Furniture and Equipment,28/04/2022,30014238,432.06 ,Veolia Es UK Ltd
South Holland District Council,http://statistics.data.gov.uk/id/local-authority/32UF,Community Development,Furniture and Equipment,28/04/2022,30014878,320.00 ,Westons Garden Machinery Ltd
South Holland District Council,http://statistics.data.gov.uk/id/local-authority/32UF,Community Development,Other Miscellaneous Expenses,14/04/2022,30014302,454.00 ,Forceshift Contracting Ltd
South Holland District Council,http://statistics.data.gov.uk/id/local-authority/32UF,Community Development,Other Miscellaneous Expenses,14/04/2022,30014394,"13,416.00 ",Parkwood Leisure Limited
South Holland District Council,http://statistics.data.gov.uk/id/local-authority/32UF,Community Development,Other Miscellaneous Expenses,14/04/2022,30014395,"20,149.00 ",Parkwood Leisure Limited
South Holland District Council,http://statistics.data.gov.uk/id/local-authority/32UF,Community Development,Other Miscellaneous Expenses,14/04/2022,30014396,"19,437.00 ",Parkwood Leisure Limited
South Holland District Council,http://statistics.data.gov.uk/id/local-authority/32UF,Community Development,Other Miscellaneous Expenses,26/04/2022,30014695,685.64 ,PPL PRS Ltd
South Holland District Council,http://statistics.data.gov.uk/id/local-authority/32UF,Community Development,Professional and Contractors Fees,28/04/2022,30013975,"1,003.20 ",G2 Recruitment Solutions
South Holland District Council,http://statistics.data.gov.uk/id/local-authority/32UF,Community Development,Professional and Contractors Fees,14/04/2022,30014256,"1,260.00 ",GBSG Ltd
South Holland District Council,http://statistics.data.gov.uk/id/local-authority/32UF,Community Development,Professional and Contractors Fees,28/04/2022,30014479,991.95 ,G2 Recruitment Solutions
South Holland District Council,http://statistics.data.gov.uk/id/local-authority/32UF,Community Development,Professional and Contractors Fees,28/04/2022,30014752,999.15 ,G2 Recruitment Solutions
South Holland District Council,http://statistics.data.gov.uk/id/local-authority/32UF,Community Development,Public Courses and Workshops,21/04/2022,30014414,"2,700.00 ",Rubicon Industries Ltd
South Holland District Council,http://statistics.data.gov.uk/id/local-authority/32UF,Community Development,Water and Sewerage Charges,07/04/2022,30014186,"21,313.15 ",Wave
South Holland District Council,http://statistics.data.gov.uk/id/local-authority/32UF,Democratic Services,Legal Fees Non-Routine,05/04/2022,30014120,"1,316.00 ",Womble Bond Dickinson UK LLP
South Holland District Council,http://statistics.data.gov.uk/id/local-authority/32UF,Democratic Services,Other Miscellaneous Expenses,07/04/2022,30013848,900.00 ,Mencap (East Region)
South Holland District Council,http://statistics.data.gov.uk/id/local-authority/32UF,Democratic Services,Other Miscellaneous Expenses,12/04/2022,30013952,"1,800.00 ",Spalding Amateur Dramatic and Operatic Society
South Holland District Council,http://statistics.data.gov.uk/id/local-authority/32UF,Democratic Services,Other Miscellaneous Expenses,07/04/2022,30013953,"2,400.00 ",Pinchbeck Parish Council
South Holland District Council,http://statistics.data.gov.uk/id/local-authority/32UF,Democratic Services,Other Miscellaneous Expenses,07/04/2022,30014089,"1,884.39 ",Project St Thomas-Spalding
South Holland District Council,http://statistics.data.gov.uk/id/local-authority/32UF,Democratic Services,Other Miscellaneous Expenses,12/04/2022,30014281,"1,800.00 ",Spalding Amateur Dramatic and Operatic Society
South Holland District Council,http://statistics.data.gov.uk/id/local-authority/32UF,Democratic Services,Other Miscellaneous Expenses,12/04/2022,30014324,815.00 ,Age UK Lincoln & South Lincolnshire
South Holland District Council,http://statistics.data.gov.uk/id/local-authority/32UF,Economic Development,Grants and Contributions to Outside Bodies - No Service Received,14/04/2022,30011589,"1,500.00 ",Rant Media Spalding Ltd
South Holland District Council,http://statistics.data.gov.uk/id/local-authority/32UF,Economic Development,Grants and Contributions to Outside Bodies - No Service Received,07/04/2022,30014191,"24,999.00 ",Boulder Developments Ltd
South Holland District Council,http://statistics.data.gov.uk/id/local-authority/32UF,Economic Development,Grants and Contributions to Outside Bodies - No Service Received,07/04/2022,30014192,"2,135.00 ",Blink Media
South Holland District Council,http://statistics.data.gov.uk/id/local-authority/32UF,Economic Development,Grants and Contributions to Outside Bodies - No Service Received,14/04/2022,30014305,"1,761.20 ",The Original Double Red Ltd
South Holland District Council,http://statistics.data.gov.uk/id/local-authority/32UF,Economic Development,Grants and Contributions to Outside Bodies - No Service Received,14/04/2022,30014329,"11,000.00 ",Tribe Business Events Ltd
South Holland District Council,http://statistics.data.gov.uk/id/local-authority/32UF,Economic Development,Grants and Contributions to Outside Bodies - No Service Received,21/04/2022,30014393,500.00 ,Heritage Trust of Lincolnshire Ltd
South Holland District Council,http://statistics.data.gov.uk/id/local-authority/32UF,Economic Development,Grants and Contributions to Outside Bodies - No Service Received,26/04/2022,30014617,"2,871.99 ",Ark Ict Solutions Ltd
South Holland District Council,http://statistics.data.gov.uk/id/local-authority/32UF,Economic Development,Grants and Contributions to Outside Bodies - No Service Received,26/04/2022,30014770,"1,943.44 ",Soil Ninja Ltd
South Holland District Council,http://statistics.data.gov.uk/id/local-authority/32UF,Economic Development,Grants and Contributions to Outside Bodies - No Service Received,26/04/2022,30014771,"20,000.00 ",Swinstead Road Garage Ltd
South Holland District Council,http://statistics.data.gov.uk/id/local-authority/32UF,Economic Development,Grants and Contributions to Outside Bodies - No Service Received,26/04/2022,30014772,"12,000.00 ",East of England Shooting Ground Ltd
South Holland District Council,http://statistics.data.gov.uk/id/local-authority/32UF,Economic Development,Grants and Contributions to Outside Bodies - No Service Received,26/04/2022,30014773,"6,530.00 ",Earthbound Misfits Ltd
South Holland District Council,http://statistics.data.gov.uk/id/local-authority/32UF,Economic Development,Grants and Contributions to Outside Bodies - No Service Received,28/04/2022,30014867,"12,500.00 ",Distinctive Developments Ltd
South Holland District Council,http://statistics.data.gov.uk/id/local-authority/32UF,Economic Development,Grants and Contributions to Outside Bodies - No Service Received,28/04/2022,30014868,"3,500.00 ",JD Print Ltd
South Holland District Council,http://statistics.data.gov.uk/id/local-authority/32UF,Economic Development,Grants and Contributions to Outside Bodies - No Service Received,28/04/2022,30014869,"24,999.00 ",Olmec-UK Ltd
South Holland District Council,http://statistics.data.gov.uk/id/local-authority/32UF,Economic Development,Grants and Contributions to Outside Bodies - No Service Received,28/04/2022,30014879,"5,494.85 ",Achtis Ltd
South Holland District Council,http://statistics.data.gov.uk/id/local-authority/32UF,Economic Development,Professional and Contractors Fees,14/04/2022,30013608,737.50 ,Michael Page Internat Recruitment Ltd
South Holland District Council,http://statistics.data.gov.uk/id/local-authority/32UF,Economic Development,Professional and Contractors Fees,05/04/2022,30013873,837.50 ,Michael Page Internat Recruitment Ltd
South Holland District Council,http://statistics.data.gov.uk/id/local-authority/32UF,Economic Development,Professional and Contractors Fees,14/04/2022,30014279,"3,281.25 ",Kudos Project Management
South Holland District Council,http://statistics.data.gov.uk/id/local-authority/32UF,Environmental Services,Agency Staff,05/04/2022,30013695,"3,412.52 ",Integrity Plus Ltd
South Holland District Council,http://statistics.data.gov.uk/id/local-authority/32UF,Environmental Services,Agency Staff,05/04/2022,30014085,534.65 ,Blue Arrow Ltd
South Holland District Council,http://statistics.data.gov.uk/id/local-authority/32UF,Environmental Services,Agency Staff,28/04/2022,30014090,598.00 ,Quality Service Recruitment Ltd
South Holland District Council,http://statistics.data.gov.uk/id/local-authority/32UF,Environmental Services,Agency Staff,05/04/2022,30014092,"2,121.12 ",Encore Personnel Services Ltd
South Holland District Council,http://statistics.data.gov.uk/id/local-authority/32UF,Environmental Services,Agency Staff,07/04/2022,30014184,"5,605.10 ",NJW Services
South Holland District Council,http://statistics.data.gov.uk/id/local-authority/32UF,Environmental Services,Agency Staff,07/04/2022,30014194,604.00 ,DAVE ROSE TRANSPORT LTD
South Holland District Council,http://statistics.data.gov.uk/id/local-authority/32UF,Environmental Services,Agency Staff,14/04/2022,30014373,530.95 ,Capital Outsourcing Group Food
South Holland District Council,http://statistics.data.gov.uk/id/local-authority/32UF,Environmental Services,Agency Staff,14/04/2022,30014374,530.95 ,Capital Outsourcing Group Food
South Holland District Council,http://statistics.data.gov.uk/id/local-authority/32UF,Environmental Services,Agency Staff,14/04/2022,30014387,"1,002.85 ",247 Personnel Ltd
South Holland District Council,http://statistics.data.gov.uk/id/local-authority/32UF,Environmental Services,Agency Staff,14/04/2022,30014388,741.62 ,247 Personnel Ltd
South Holland District Council,http://statistics.data.gov.uk/id/local-authority/32UF,Environmental Services,Agency Staff,14/04/2022,30014397,510.60 ,Essential Staffing Ltd
South Holland District Council,http://statistics.data.gov.uk/id/local-authority/32UF,Environmental Services,Agency Staff,14/04/2022,30014398,592.00 ,Quality Service Recruitment Ltd
South Holland District Council,http://statistics.data.gov.uk/id/local-authority/32UF,Environmental Services,Agency Staff,14/04/2022,30014403,"1,627.00 ",The Best Connection Group Ltd
South Holland District Council,http://statistics.data.gov.uk/id/local-authority/32UF,Environmental Services,Agency Staff,14/04/2022,30014404,603.84 ,The Best Connection Group Ltd
South Holland District Council,http://statistics.data.gov.uk/id/local-authority/32UF,Environmental Services,Agency Staff,26/04/2022,30014515,603.84 ,The Best Connection Group Ltd
South Holland District Council,http://statistics.data.gov.uk/id/local-authority/32UF,Environmental Services,Agency Staff,26/04/2022,30014516,"1,603.23 ",The Best Connection Group Ltd
South Holland District Council,http://statistics.data.gov.uk/id/local-authority/32UF,Environmental Services,Agency Staff,21/04/2022,30014524,"3,219.80 ",Integrity Plus Ltd
South Holland District Council,http://statistics.data.gov.uk/id/local-authority/32UF,Environmental Services,Agency Staff,21/04/2022,30014525,"1,467.38 ",Encore Personnel Services Ltd
South Holland District Council,http://statistics.data.gov.uk/id/local-authority/32UF,Environmental Services,Agency Staff,21/04/2022,30014563,"1,916.16 ",Encore Personnel Services Ltd
South Holland District Council,http://statistics.data.gov.uk/id/local-authority/32UF,Environmental Services,Agency Staff,21/04/2022,30014565,"1,877.75 ",Integrity Plus Ltd
South Holland District Council,http://statistics.data.gov.uk/id/local-authority/32UF,Environmental Services,Agency Staff,21/04/2022,30014567,615.68 ,Quality Service Recruitment Ltd
South Holland District Council,http://statistics.data.gov.uk/id/local-authority/32UF,Environmental Services,Agency Staff,21/04/2022,30014588,530.95 ,Capital Outsourcing Group Food
South Holland District Council,http://statistics.data.gov.uk/id/local-authority/32UF,Environmental Services,Agency Staff,21/04/2022,30014589,539.83 ,Capital Outsourcing Group Food
South Holland District Council,http://statistics.data.gov.uk/id/local-authority/32UF,Environmental Services,Agency Staff,28/04/2022,30014664,537.83 ,Blue Arrow Ltd
South Holland District Council,http://statistics.data.gov.uk/id/local-authority/32UF,Environmental Services,Agency Staff,28/04/2022,30014702,561.29 ,Blue Arrow Ltd
South Holland District Council,http://statistics.data.gov.uk/id/local-authority/32UF,Environmental Services,Agency Staff,28/04/2022,30014708,624.93 ,The Best Connection Group Ltd
South Holland District Council,http://statistics.data.gov.uk/id/local-authority/32UF,Environmental Services,Agency Staff,28/04/2022,30014709,"1,301.21 ",The Best Connection Group Ltd
South Holland District Council,http://statistics.data.gov.uk/id/local-authority/32UF,Environmental Services,Agency Staff,28/04/2022,30014750,488.40 ,Essential Staffing Ltd
South Holland District Council,http://statistics.data.gov.uk/id/local-authority/32UF,Environmental Services,Agency Staff,26/04/2022,30014776,692.60 ,DAVE ROSE TRANSPORT LTD
South Holland District Council,http://statistics.data.gov.uk/id/local-authority/32UF,Environmental Services,Agency Staff,28/04/2022,30014789,677.24 ,Quality Service Recruitment Ltd
South Holland District Council,http://statistics.data.gov.uk/id/local-authority/32UF,Environmental Services,Commercial Vehicle Lease Payments (Less than 12 months),28/04/2022,30014410,782.00 ,Go Plant Fleet Services
South Holland District Council,http://statistics.data.gov.uk/id/local-authority/32UF,Environmental Services,Commercial Vehicle Lease Payments (More than 12 months),28/04/2022,30014410,"1,018.66 ",Go Plant Fleet Services
South Holland District Council,http://statistics.data.gov.uk/id/local-authority/32UF,Environmental Services,Fuel and Oil,07/04/2022,30014185,"8,172.80 ",C H Jones Ltd
South Holland District Council,http://statistics.data.gov.uk/id/local-authority/32UF,Environmental Services,Fuel and Oil,14/04/2022,30014421,"10,999.43 ",C H Jones Ltd
South Holland District Council,http://statistics.data.gov.uk/id/local-authority/32UF,Environmental Services,Fuel and Oil,21/04/2022,30014523,"9,751.26 ",C H Jones Ltd
South Holland District Council,http://statistics.data.gov.uk/id/local-authority/32UF,Environmental Services,Fuel and Oil,28/04/2022,30014663,"2,093.95 ",WCF Chandlers
South Holland District Council,http://statistics.data.gov.uk/id/local-authority/32UF,Environmental Services,Fuel and Oil,28/04/2022,30014788,"8,889.51 ",C H Jones Ltd
South Holland District Council,http://statistics.data.gov.uk/id/local-authority/32UF,Environmental Services,Grants and Contributions - Where a Service is Received,14/04/2022,30014431,"1,680.00 ",Pinchbeck Parish Council
South Holland District Council,http://statistics.data.gov.uk/id/local-authority/32UF,Environmental Services,Income Collected on Behalf of External Organisations,14/04/2022,30014430,"5,112.35 ",Broadgate Builders T/A Westlode Car Park
South Holland District Council,http://statistics.data.gov.uk/id/local-authority/32UF,Environmental Services,Materials and Consumables,28/04/2022,30014195,"2,017.08 ",Rigby Taylor Limited
South Holland District Council,http://statistics.data.gov.uk/id/local-authority/32UF,Environmental Services,Materials and Consumables,14/04/2022,30014419,"1,597.14 ",Russells Kirbymoorside Ltd
South Holland District Council,http://statistics.data.gov.uk/id/local-authority/32UF,Environmental Services,Other Employee Expenses,05/04/2022,30012722,750.00 ,ELAS Occupational Health Ltd
South Holland District Council,http://statistics.data.gov.uk/id/local-authority/32UF,Environmental Services,Other Employee Expenses,05/04/2022,30013147,850.00 ,ELAS Occupational Health Ltd
South Holland District Council,http://statistics.data.gov.uk/id/local-authority/32UF,Environmental Services,Other Miscellaneous Expenses,07/04/2022,30014122,"5,595.00 ",Gardners
South Holland District Council,http://statistics.data.gov.uk/id/local-authority/32UF,Environmental Services,Other Miscellaneous Expenses,21/04/2022,30014539,460.00 ,Crusader Traffic Ltd
South Holland District Council,http://statistics.data.gov.uk/id/local-authority/32UF,Environmental Services,PCN Income,14/04/2022,30014429,"3,045.18 ",Broadgate Builders T/A Westlode Car Park
South Holland District Council,http://statistics.data.gov.uk/id/local-authority/32UF,Environmental Services,Professional and Contractors Fees,12/04/2022,30014282,750.00 ,Weaar
South Holland District Council,http://statistics.data.gov.uk/id/local-authority/32UF,Environmental Services,Professional and Contractors Fees,28/04/2022,30014303,"1,120.80 ",Kings Armoured Security Services Ltd
South Holland District Council,http://statistics.data.gov.uk/id/local-authority/32UF,Environmental Services,Professional and Contractors Fees,21/04/2022,30014435,"1,287.76 ",Lincolnshire County Council
South Holland District Council,http://statistics.data.gov.uk/id/local-authority/32UF,Environmental Services,Professional and Contractors Fees,21/04/2022,30014436,994.08 ,Lincolnshire County Council
South Holland District Council,http://statistics.data.gov.uk/id/local-authority/32UF,Environmental Services,Professional and Contractors Fees,26/04/2022,30014634,784.00 ,G W Engineering (Lincs) Ltd
South Holland District Council,http://statistics.data.gov.uk/id/local-authority/32UF,Environmental Services,Subscriptions to Organisations and Other Bodies,28/04/2022,30014168,768.00 ,NABMA
South Holland District Council,http://statistics.data.gov.uk/id/local-authority/32UF,Environmental Services,Transport Insurance Excess,28/04/2022,30014130,432.77 ,Nationwide Windscreen Services
South Holland District Council,http://statistics.data.gov.uk/id/local-authority/32UF,Environmental Services,Tyres,26/04/2022,30014698,"4,523.00 ",Vaculug Technologies Ltd
South Holland District Council,http://statistics.data.gov.uk/id/local-authority/32UF,Environmental Services,Workshop Parts,28/04/2022,30014204,434.13 ,Fleet Factors Ltd
South Holland District Council,http://statistics.data.gov.uk/id/local-authority/32UF,Finance,Grants and Contributions to Outside Bodies - No Service Received,21/04/2022,30014399,"1,041.30 ",Citizens Advice South Lincolnshire
South Holland District Council,http://statistics.data.gov.uk/id/local-authority/32UF,Finance,Parish Council Precepts,07/04/2022,30014138,"9,462.23 ",Sutton St Edmund Parish Council
South Holland District Council,http://statistics.data.gov.uk/id/local-authority/32UF,Finance,Parish Council Precepts,07/04/2022,30014139,"40,000.00 ",Gedney Parish Council
South Holland District Council,http://statistics.data.gov.uk/id/local-authority/32UF,Finance,Parish Council Precepts,07/04/2022,30014140,"27,000.00 ",Tydd St Mary Parish Council
South Holland District Council,http://statistics.data.gov.uk/id/local-authority/32UF,Finance,Parish Council Precepts,07/04/2022,30014141,"20,000.00 ",Weston Parish Council
South Holland District Council,http://statistics.data.gov.uk/id/local-authority/32UF,Finance,Parish Council Precepts,07/04/2022,30014142,"23,000.00 ",Lutton Parish Council
South Holland District Council,http://statistics.data.gov.uk/id/local-authority/32UF,Finance,Parish Council Precepts,07/04/2022,30014143,"14,576.00 ",Cowbit Parish Council
South Holland District Council,http://statistics.data.gov.uk/id/local-authority/32UF,Finance,Parish Council Precepts,07/04/2022,30014144,"43,035.00 ",Moulton Parish Council
South Holland District Council,http://statistics.data.gov.uk/id/local-authority/32UF,Finance,Parish Council Precepts,07/04/2022,30014145,"10,800.00 ",Quadring Parish Council
South Holland District Council,http://statistics.data.gov.uk/id/local-authority/32UF,Finance,Parish Council Precepts,07/04/2022,30014146,"244,340.57 ",Holbeach Parish Council
South Holland District Council,http://statistics.data.gov.uk/id/local-authority/32UF,Finance,Parish Council Precepts,07/04/2022,30014147,"31,035.00 ",Fleet Parish Council
South Holland District Council,http://statistics.data.gov.uk/id/local-authority/32UF,Finance,Parish Council Precepts,07/04/2022,30014148,"47,000.00 ",Donington Parish Council
South Holland District Council,http://statistics.data.gov.uk/id/local-authority/32UF,Finance,Parish Council Precepts,07/04/2022,30014149,"122,261.00 ",Crowland Parish Council
South Holland District Council,http://statistics.data.gov.uk/id/local-authority/32UF,Finance,Parish Council Precepts,07/04/2022,30014150,"25,000.00 ",Gosberton Parish Council
South Holland District Council,http://statistics.data.gov.uk/id/local-authority/32UF,Finance,Parish Council Precepts,07/04/2022,30014151,"102,500.00 ",Pinchbeck Parish Council
South Holland District Council,http://statistics.data.gov.uk/id/local-authority/32UF,Finance,Parish Council Precepts,07/04/2022,30014152,"10,395.00 ",Gedney Hill Parish Council
South Holland District Council,http://statistics.data.gov.uk/id/local-authority/32UF,Finance,Parish Council Precepts,07/04/2022,30014153,"19,107.00 ",Deeping St Nicholas Parish Council
South Holland District Council,http://statistics.data.gov.uk/id/local-authority/32UF,Finance,Parish Council Precepts,07/04/2022,30014154,"14,500.00 ",Whaplode Parish Council
South Holland District Council,http://statistics.data.gov.uk/id/local-authority/32UF,Finance,Parish Council Precepts,07/04/2022,30014156,650.00 ,Little Sutton Parish Meeting
South Holland District Council,http://statistics.data.gov.uk/id/local-authority/32UF,Finance,Parish Council Precepts,07/04/2022,30014157,"125,000.00 ",Long Sutton Parish Council
South Holland District Council,http://statistics.data.gov.uk/id/local-authority/32UF,Finance,Parish Council Precepts,07/04/2022,30014158,"15,000.00 ",Sutton St James Parish Council
South Holland District Council,http://statistics.data.gov.uk/id/local-authority/32UF,Finance,Parish Council Precepts,07/04/2022,30014159,"70,033.00 ",Sutton Bridge and Wingland Parish Counc
South Holland District Council,http://statistics.data.gov.uk/id/local-authority/32UF,Finance,Public Sector Partnership Services,28/04/2022,30014774,"253,689.08 ",Public Sector Partnership Services Ltd
South Holland District Council,http://statistics.data.gov.uk/id/local-authority/32UF,Housing,Agency Staff,26/04/2022,30013546,"11,142.50 ",Park Avenue Recruitment Ltd
South Holland District Council,http://statistics.data.gov.uk/id/local-authority/32UF,Housing,Agency Staff,26/04/2022,30013548,"9,940.00 ",Park Avenue Recruitment Ltd
South Holland District Council,http://statistics.data.gov.uk/id/local-authority/32UF,Housing,Agency Staff,19/04/2022,30013866,"5,105.00 ",Park Avenue Recruitment Ltd
South Holland District Council,http://statistics.data.gov.uk/id/local-authority/32UF,Housing,Agency Staff,26/04/2022,30013868,"7,452.50 ",Park Avenue Recruitment Ltd
South Holland District Council,http://statistics.data.gov.uk/id/local-authority/32UF,Housing,Agency Staff,05/04/2022,30013914,388.08 ,Integrity Plus Ltd
South Holland District Council,http://statistics.data.gov.uk/id/local-authority/32UF,Housing,Agency Staff,14/04/2022,30013933,841.23 ,Integrity Plus Ltd
South Holland District Council,http://statistics.data.gov.uk/id/local-authority/32UF,Housing,Agency Staff,12/04/2022,30014215,"2,750.00 ",Park Avenue Recruitment Ltd
South Holland District Council,http://statistics.data.gov.uk/id/local-authority/32UF,Housing,Agency Staff,19/04/2022,30014447,"2,750.00 ",Park Avenue Recruitment Ltd
South Holland District Council,http://statistics.data.gov.uk/id/local-authority/32UF,Housing,Agency Staff,19/04/2022,30014457,"2,689.22 ",Park Avenue Recruitment Ltd
South Holland District Council,http://statistics.data.gov.uk/id/local-authority/32UF,Housing,Agency Staff,21/04/2022,30014590,"1,925.00 ",Park Avenue Recruitment Ltd
South Holland District Council,http://statistics.data.gov.uk/id/local-authority/32UF,Housing,Agency Staff,28/04/2022,30014703,334.18 ,Integrity Plus Ltd
South Holland District Council,http://statistics.data.gov.uk/id/local-authority/32UF,Housing,Bed and Breakfast Accommodation (Homelessness Service),14/04/2022,30012550,528.89 ,the Anchor Inn
South Holland District Council,http://statistics.data.gov.uk/id/local-authority/32UF,Housing,Bed and Breakfast Accommodation (Homelessness Service),12/04/2022,30013070,653.33 ,the Anchor Inn
South Holland District Council,http://statistics.data.gov.uk/id/local-authority/32UF,Housing,Bed and Breakfast Accommodation (Homelessness Service),14/04/2022,30013071,528.89 ,the Anchor Inn
South Holland District Council,http://statistics.data.gov.uk/id/local-authority/32UF,Housing,Bed and Breakfast Accommodation (Homelessness Service),19/04/2022,30013669,684.44 ,the Anchor Inn
South Holland District Council,http://statistics.data.gov.uk/id/local-authority/32UF,Housing,Bed and Breakfast Accommodation (Homelessness Service),14/04/2022,30013670,"1,306.67 ",the Anchor Inn
South Holland District Council,http://statistics.data.gov.uk/id/local-authority/32UF,Housing,Bed and Breakfast Accommodation (Homelessness Service),19/04/2022,30013877,831.11 ,The Mansion House Hotel
South Holland District Council,http://statistics.data.gov.uk/id/local-authority/32UF,Housing,Bed and Breakfast Accommodation (Homelessness Service),14/04/2022,30013939,840.00 ,the Anchor Inn
South Holland District Council,http://statistics.data.gov.uk/id/local-authority/32UF,Housing,Bed and Breakfast Accommodation (Homelessness Service),19/04/2022,30013940,488.89 ,the Anchor Inn
South Holland District Council,http://statistics.data.gov.uk/id/local-authority/32UF,Housing,Bed and Breakfast Accommodation (Homelessness Service),14/04/2022,30013943,533.33 ,the Anchor Inn
South Holland District Council,http://statistics.data.gov.uk/id/local-authority/32UF,Housing,Bed and Breakfast Accommodation (Homelessness Service),14/04/2022,30013950,986.67 ,The Mansion House Hotel
South Holland District Council,http://statistics.data.gov.uk/id/local-authority/32UF,Housing,Bed and Breakfast Accommodation (Homelessness Service),14/04/2022,30013969,"4,614.57 ",G and A Hotels T A Woodlands Hotel
South Holland District Council,http://statistics.data.gov.uk/id/local-authority/32UF,Housing,Bed and Breakfast Accommodation (Homelessness Service),14/04/2022,30014097,945.00 ,Anglia Motel
South Holland District Council,http://statistics.data.gov.uk/id/local-authority/32UF,Housing,Bed and Breakfast Accommodation (Homelessness Service),14/04/2022,30014098,490.00 ,Anglia Motel
South Holland District Council,http://statistics.data.gov.uk/id/local-authority/32UF,Housing,Bed and Breakfast Accommodation (Homelessness Service),12/04/2022,30014099,945.00 ,Anglia Motel
South Holland District Council,http://statistics.data.gov.uk/id/local-authority/32UF,Housing,Bed and Breakfast Accommodation (Homelessness Service),14/04/2022,30014100,945.00 ,Anglia Motel
South Holland District Council,http://statistics.data.gov.uk/id/local-authority/32UF,Housing,Bed and Breakfast Accommodation (Homelessness Service),12/04/2022,30014101,540.00 ,Anglia Motel
South Holland District Council,http://statistics.data.gov.uk/id/local-authority/32UF,Housing,Bed and Breakfast Accommodation (Homelessness Service),12/04/2022,30014102,875.00 ,Anglia Motel
South Holland District Council,http://statistics.data.gov.uk/id/local-authority/32UF,Housing,Bed and Breakfast Accommodation (Homelessness Service),14/04/2022,30014103,675.00 ,Anglia Motel
South Holland District Council,http://statistics.data.gov.uk/id/local-authority/32UF,Housing,Bed and Breakfast Accommodation (Homelessness Service),14/04/2022,30014104,490.00 ,Anglia Motel
South Holland District Council,http://statistics.data.gov.uk/id/local-authority/32UF,Housing,Bed and Breakfast Accommodation (Homelessness Service),12/04/2022,30014105,490.00 ,Anglia Motel
South Holland District Council,http://statistics.data.gov.uk/id/local-authority/32UF,Housing,Bed and Breakfast Accommodation (Homelessness Service),14/04/2022,30014106,560.00 ,Anglia Motel
South Holland District Council,http://statistics.data.gov.uk/id/local-authority/32UF,Housing,Bed and Breakfast Accommodation (Homelessness Service),14/04/2022,30014107,560.00 ,Anglia Motel
South Holland District Council,http://statistics.data.gov.uk/id/local-authority/32UF,Housing,Bed and Breakfast Accommodation (Homelessness Service),14/04/2022,30014108,490.00 ,Anglia Motel
South Holland District Council,http://statistics.data.gov.uk/id/local-authority/32UF,Housing,Bed and Breakfast Accommodation (Homelessness Service),14/04/2022,30014109,560.00 ,Anglia Motel
South Holland District Council,http://statistics.data.gov.uk/id/local-authority/32UF,Housing,Bed and Breakfast Accommodation (Homelessness Service),14/04/2022,30014110,560.00 ,Anglia Motel
South Holland District Council,http://statistics.data.gov.uk/id/local-authority/32UF,Housing,Bed and Breakfast Accommodation (Homelessness Service),14/04/2022,30014111,490.00 ,Anglia Motel
South Holland District Council,http://statistics.data.gov.uk/id/local-authority/32UF,Housing,Bed and Breakfast Accommodation (Homelessness Service),14/04/2022,30014112,560.00 ,Anglia Motel
South Holland District Council,http://statistics.data.gov.uk/id/local-authority/32UF,Housing,Bed and Breakfast Accommodation (Homelessness Service),14/04/2022,30014113,560.00 ,Anglia Motel
South Holland District Council,http://statistics.data.gov.uk/id/local-authority/32UF,Housing,Bed and Breakfast Accommodation (Homelessness Service),14/04/2022,30014116,742.50 ,Anglia Motel
South Holland District Council,http://statistics.data.gov.uk/id/local-authority/32UF,Housing,Bed and Breakfast Accommodation (Homelessness Service),14/04/2022,30014162,"1,662.22 ",The Boat House
South Holland District Council,http://statistics.data.gov.uk/id/local-authority/32UF,Housing,Bed and Breakfast Accommodation (Homelessness Service),14/04/2022,30014163,755.56 ,The Boat House
South Holland District Council,http://statistics.data.gov.uk/id/local-authority/32UF,Housing,Bed and Breakfast Accommodation (Homelessness Service),14/04/2022,30014164,"1,586.67 ",The Boat House
South Holland District Council,http://statistics.data.gov.uk/id/local-authority/32UF,Housing,Bed and Breakfast Accommodation (Homelessness Service),12/04/2022,30014165,906.67 ,The Boat House
South Holland District Council,http://statistics.data.gov.uk/id/local-authority/32UF,Housing,Bed and Breakfast Accommodation (Homelessness Service),14/04/2022,30014205,495.83 ,The Boat House
South Holland District Council,http://statistics.data.gov.uk/id/local-authority/32UF,Housing,Bed and Breakfast Accommodation (Homelessness Service),12/04/2022,30014210,495.83 ,The Boat House
South Holland District Council,http://statistics.data.gov.uk/id/local-authority/32UF,Housing,Bed and Breakfast Accommodation (Homelessness Service),14/04/2022,30014211,495.83 ,The Boat House
South Holland District Council,http://statistics.data.gov.uk/id/local-authority/32UF,Housing,Bed and Breakfast Accommodation (Homelessness Service),14/04/2022,30014212,612.50 ,the Anchor Inn
South Holland District Council,http://statistics.data.gov.uk/id/local-authority/32UF,Housing,Bed and Breakfast Accommodation (Homelessness Service),14/04/2022,30014405,758.33 ,The Mansion House Hotel
South Holland District Council,http://statistics.data.gov.uk/id/local-authority/32UF,Housing,Bed and Breakfast Accommodation (Homelessness Service),19/04/2022,30014406,530.83 ,The Mansion House Hotel
South Holland District Council,http://statistics.data.gov.uk/id/local-authority/32UF,Housing,Bed and Breakfast Accommodation (Homelessness Service),14/04/2022,30014408,530.83 ,The Mansion House Hotel
South Holland District Council,http://statistics.data.gov.uk/id/local-authority/32UF,Housing,Bed and Breakfast Accommodation (Homelessness Service),19/04/2022,30014489,"2,168.89 ",The Mansion House Hotel
South Holland District Council,http://statistics.data.gov.uk/id/local-authority/32UF,Housing,Bed and Breakfast Accommodation (Homelessness Service),19/04/2022,30014492,"2,066.67 ",The Mansion House Hotel
South Holland District Council,http://statistics.data.gov.uk/id/local-authority/32UF,Housing,Bed and Breakfast Accommodation (Homelessness Service),19/04/2022,30014493,480.00 ,Anglia Motel
South Holland District Council,http://statistics.data.gov.uk/id/local-authority/32UF,Housing,Bed and Breakfast Accommodation (Homelessness Service),19/04/2022,30014494,995.56 ,The Mansion House Hotel
South Holland District Council,http://statistics.data.gov.uk/id/local-authority/32UF,Housing,Bed and Breakfast Accommodation (Homelessness Service),19/04/2022,30014495,604.44 ,The Mansion House Hotel
South Holland District Council,http://statistics.data.gov.uk/id/local-authority/32UF,Housing,Bed and Breakfast Accommodation (Homelessness Service),19/04/2022,30014496,604.44 ,The Mansion House Hotel
South Holland District Council,http://statistics.data.gov.uk/id/local-authority/32UF,Housing,Bed and Breakfast Accommodation (Homelessness Service),19/04/2022,30014497,453.33 ,The Mansion House Hotel
South Holland District Council,http://statistics.data.gov.uk/id/local-authority/32UF,Housing,Bed and Breakfast Accommodation (Homelessness Service),19/04/2022,30014500,"1,888.89 ",The Mansion House Hotel
South Holland District Council,http://statistics.data.gov.uk/id/local-authority/32UF,Housing,Bed and Breakfast Accommodation (Homelessness Service),21/04/2022,30014510,612.50 ,the Anchor Inn
South Holland District Council,http://statistics.data.gov.uk/id/local-authority/32UF,Housing,Bed and Breakfast Accommodation (Homelessness Service),21/04/2022,30014521,991.67 ,the Anchor Inn
South Holland District Council,http://statistics.data.gov.uk/id/local-authority/32UF,Housing,Bed and Breakfast Accommodation (Homelessness Service),21/04/2022,30014542,560.00 ,Anglia Motel
South Holland District Council,http://statistics.data.gov.uk/id/local-authority/32UF,Housing,Bed and Breakfast Accommodation (Homelessness Service),21/04/2022,30014543,560.00 ,Anglia Motel
South Holland District Council,http://statistics.data.gov.uk/id/local-authority/32UF,Housing,Bed and Breakfast Accommodation (Homelessness Service),21/04/2022,30014544,560.00 ,Anglia Motel
South Holland District Council,http://statistics.data.gov.uk/id/local-authority/32UF,Housing,Bed and Breakfast Accommodation (Homelessness Service),21/04/2022,30014545,440.00 ,Anglia Motel
South Holland District Council,http://statistics.data.gov.uk/id/local-authority/32UF,Housing,Bed and Breakfast Accommodation (Homelessness Service),21/04/2022,30014546,560.00 ,Anglia Motel
South Holland District Council,http://statistics.data.gov.uk/id/local-authority/32UF,Housing,Bed and Breakfast Accommodation (Homelessness Service),21/04/2022,30014547,490.00 ,Anglia Motel
South Holland District Council,http://statistics.data.gov.uk/id/local-authority/32UF,Housing,Bed and Breakfast Accommodation (Homelessness Service),21/04/2022,30014548,560.00 ,Anglia Motel
South Holland District Council,http://statistics.data.gov.uk/id/local-authority/32UF,Housing,Bed and Breakfast Accommodation (Homelessness Service),21/04/2022,30014549,490.00 ,Anglia Motel
South Holland District Council,http://statistics.data.gov.uk/id/local-authority/32UF,Housing,Bed and Breakfast Accommodation (Homelessness Service),21/04/2022,30014551,875.00 ,Anglia Motel
South Holland District Council,http://statistics.data.gov.uk/id/local-authority/32UF,Housing,Bed and Breakfast Accommodation (Homelessness Service),21/04/2022,30014552,945.00 ,Anglia Motel
South Holland District Council,http://statistics.data.gov.uk/id/local-authority/32UF,Housing,Bed and Breakfast Accommodation (Homelessness Service),21/04/2022,30014553,945.00 ,Anglia Motel
South Holland District Council,http://statistics.data.gov.uk/id/local-authority/32UF,Housing,Bed and Breakfast Accommodation (Homelessness Service),21/04/2022,30014555,945.00 ,Anglia Motel
South Holland District Council,http://statistics.data.gov.uk/id/local-authority/32UF,Housing,Bed and Breakfast Accommodation (Homelessness Service),21/04/2022,30014556,490.00 ,Anglia Motel
South Holland District Council,http://statistics.data.gov.uk/id/local-authority/32UF,Housing,Bed and Breakfast Accommodation (Homelessness Service),21/04/2022,30014557,945.00 ,Anglia Motel
South Holland District Council,http://statistics.data.gov.uk/id/local-authority/32UF,Housing,Bed and Breakfast Accommodation (Homelessness Service),21/04/2022,30014558,945.00 ,Anglia Motel
South Holland District Council,http://statistics.data.gov.uk/id/local-authority/32UF,Housing,Bed and Breakfast Accommodation (Homelessness Service),21/04/2022,30014559,633.33 ,The Mansion House Hotel
South Holland District Council,http://statistics.data.gov.uk/id/local-authority/32UF,Housing,Bed and Breakfast Accommodation (Homelessness Service),26/04/2022,30014561,530.83 ,The Mansion House Hotel
South Holland District Council,http://statistics.data.gov.uk/id/local-authority/32UF,Housing,Bed and Breakfast Accommodation (Homelessness Service),21/04/2022,30014562,530.83 ,The Mansion House Hotel
South Holland District Council,http://statistics.data.gov.uk/id/local-authority/32UF,Housing,Bed and Breakfast Accommodation (Homelessness Service),21/04/2022,30014576,945.00 ,Anglia Motel
South Holland District Council,http://statistics.data.gov.uk/id/local-authority/32UF,Housing,Bed and Breakfast Accommodation (Homelessness Service),21/04/2022,30014578,560.00 ,Anglia Motel
South Holland District Council,http://statistics.data.gov.uk/id/local-authority/32UF,Housing,Bed and Breakfast Accommodation (Homelessness Service),21/04/2022,30014580,560.00 ,Anglia Motel
South Holland District Council,http://statistics.data.gov.uk/id/local-authority/32UF,Housing,Bed and Breakfast Accommodation (Homelessness Service),21/04/2022,30014582,490.00 ,Anglia Motel
South Holland District Council,http://statistics.data.gov.uk/id/local-authority/32UF,Housing,Bed and Breakfast Accommodation (Homelessness Service),21/04/2022,30014607,528.89 ,The Boat House
South Holland District Council,http://statistics.data.gov.uk/id/local-authority/32UF,Housing,Bed and Breakfast Accommodation (Homelessness Service),26/04/2022,30014630,920.83 ,The Boat House
South Holland District Council,http://statistics.data.gov.uk/id/local-authority/32UF,Housing,Bed and Breakfast Accommodation (Homelessness Service),28/04/2022,30014631,920.83 ,The Boat House
South Holland District Council,http://statistics.data.gov.uk/id/local-authority/32UF,Housing,Bed and Breakfast Accommodation (Homelessness Service),28/04/2022,30014633,708.33 ,The Boat House
South Holland District Council,http://statistics.data.gov.uk/id/local-authority/32UF,Housing,Bed and Breakfast Accommodation (Homelessness Service),28/04/2022,30014642,612.50 ,the Anchor Inn
South Holland District Council,http://statistics.data.gov.uk/id/local-authority/32UF,Housing,Bed and Breakfast Accommodation (Homelessness Service),28/04/2022,30014693,612.50 ,the Anchor Inn
South Holland District Council,http://statistics.data.gov.uk/id/local-authority/32UF,Housing,Bed and Breakfast Accommodation (Homelessness Service),28/04/2022,30014828,560.00 ,Anglia Motel
South Holland District Council,http://statistics.data.gov.uk/id/local-authority/32UF,Housing,Grants and Contributions to Outside Bodies - No Service Received,14/04/2022,30013880,"3,284.00 ",M Vincent Plumbing and Heating
South Holland District Council,http://statistics.data.gov.uk/id/local-authority/32UF,Housing,Grants and Contributions to Outside Bodies - No Service Received,14/04/2022,30014127,"1,512.00 ",Perfect Move
South Holland District Council,http://statistics.data.gov.uk/id/local-authority/32UF,Housing,Grants and Contributions to Outside Bodies - No Service Received,14/04/2022,30014246,"12,000.00 ",WMG Home Improvements
South Holland District Council,http://statistics.data.gov.uk/id/local-authority/32UF,Housing,Grants and Contributions to Outside Bodies - No Service Received,21/04/2022,30014560,"8,000.00 ",M P L Home Improvements
South Holland District Council,http://statistics.data.gov.uk/id/local-authority/32UF,Housing,Other Income,28/04/2022,30014888,"29,607.88 ",Lloyds TSB Bank Plc
South Holland District Council,http://statistics.data.gov.uk/id/local-authority/32UF,Housing,Professional and Contractors Fees,26/04/2022,30014353,878.00 ,Language Line Ltd
South Holland District Council,http://statistics.data.gov.uk/id/local-authority/32UF,Housing,Professional Fees,28/04/2022,30014093,"2,000.00 ",Focus Consultants 2010 LLP
South Holland District Council,http://statistics.data.gov.uk/id/local-authority/32UF,Housing,Professional Fees,28/04/2022,30014123,"3,942.00 ",M A Cost Consulting Ltd
South Holland District Council,http://statistics.data.gov.uk/id/local-authority/32UF,Housing Landlord Manager,Agency Staff,05/04/2022,30013388,962.00 ,PERSONAL INFORMATION REDACTED
South Holland District Council,http://statistics.data.gov.uk/id/local-authority/32UF,Housing Landlord Manager,Agency Staff,07/04/2022,30013740,962.00 ,PERSONAL INFORMATION REDACTED
South Holland District Council,http://statistics.data.gov.uk/id/local-authority/32UF,Housing Landlord Manager,Agency Staff,05/04/2022,30013914,166.32 ,Integrity Plus Ltd
South Holland District Council,http://statistics.data.gov.uk/id/local-authority/32UF,Housing Landlord Manager,Agency Staff,19/04/2022,30014260,962.00 ,PERSONAL INFORMATION REDACTED
South Holland District Council,http://statistics.data.gov.uk/id/local-authority/32UF,Housing Landlord Manager,Agency Staff,28/04/2022,30014674,798.34 ,Niyaa People
South Holland District Council,http://statistics.data.gov.uk/id/local-authority/32UF,Housing Landlord Manager,Agency Staff,28/04/2022,30014703,143.22 ,Integrity Plus Ltd
South Holland District Council,http://statistics.data.gov.uk/id/local-authority/32UF,Housing Landlord Manager,Agency Staff,28/04/2022,30014841,975.00 ,PERSONAL INFORMATION REDACTED
South Holland District Council,http://statistics.data.gov.uk/id/local-authority/32UF,Housing Landlord Manager,Buildings Maintenance - Programmed,28/04/2022,30014258,997.50 ,Cooler Sense
South Holland District Council,http://statistics.data.gov.uk/id/local-authority/32UF,Housing Landlord Manager,Buildings Maintenance - Responsive,05/04/2022,30011984,"7,465.95 ",C G Godfrey Ltd
South Holland District Council,http://statistics.data.gov.uk/id/local-authority/32UF,Housing Landlord Manager,Buildings Maintenance - Responsive,12/04/2022,30013517,973.38 ,H20 Nationwide Limited
South Holland District Council,http://statistics.data.gov.uk/id/local-authority/32UF,Housing Landlord Manager,Buildings Maintenance - Responsive,19/04/2022,30014076,583.56 ,Stannah
South Holland District Council,http://statistics.data.gov.uk/id/local-authority/32UF,Housing Landlord Manager,Buildings Maintenance - Responsive,14/04/2022,30014172,585.00 ,Boors Ltd
South Holland District Council,http://statistics.data.gov.uk/id/local-authority/32UF,Housing Landlord Manager,Buildings Maintenance - Responsive,14/04/2022,30014262,625.00 ,Boors Ltd
South Holland District Council,http://statistics.data.gov.uk/id/local-authority/32UF,Housing Landlord Manager,Buildings Maintenance - Responsive,19/04/2022,30014263,"1,350.00 ",Boors Ltd
South Holland District Council,http://statistics.data.gov.uk/id/local-authority/32UF,Housing Landlord Manager,Buildings Maintenance - Responsive,19/04/2022,30014264,"1,750.00 ",Boors Ltd
South Holland District Council,http://statistics.data.gov.uk/id/local-authority/32UF,Housing Landlord Manager,Buildings Maintenance - Responsive,19/04/2022,30014441,765.00 ,L Fragale
South Holland District Council,http://statistics.data.gov.uk/id/local-authority/32UF,Housing Landlord Manager,Buildings Maintenance - Responsive,28/04/2022,30014596,"2,350.80 ",Lincs Water Services Ltd
South Holland District Council,http://statistics.data.gov.uk/id/local-authority/32UF,Housing Landlord Manager,Buildings Maintenance - Responsive,28/04/2022,30014597,"1,495.90 ",Lincs Water Services Ltd
South Holland District Council,http://statistics.data.gov.uk/id/local-authority/32UF,Housing Landlord Manager,Buildings Maintenance - Responsive,28/04/2022,30014603,"1,495.00 ",Lincs Water Services Ltd
South Holland District Council,http://statistics.data.gov.uk/id/local-authority/32UF,Housing Landlord Manager,Buildings Maintenance - Responsive,26/04/2022,30014649,"8,116.00 ",M and R Glass and Glazing Ltd
South Holland District Council,http://statistics.data.gov.uk/id/local-authority/32UF,Housing Landlord Manager,Buildings Maintenance - Responsive,28/04/2022,30014713,700.00 ,Lincs Water Services Ltd
South Holland District Council,http://statistics.data.gov.uk/id/local-authority/32UF,Housing Landlord Manager,Buildings Maintenance - Responsive,28/04/2022,30014741,"2,020.20 ",Lincs Water Services Ltd
South Holland District Council,http://statistics.data.gov.uk/id/local-authority/32UF,Housing Landlord Manager,Buildings Maintenance - Responsive,28/04/2022,30014848,"16,900.00 ",Boors Ltd
South Holland District Council,http://statistics.data.gov.uk/id/local-authority/32UF,Housing Landlord Manager,Cleaning Contract,12/04/2022,30013911,600.00 ,aAFD services Ltd
South Holland District Council,http://statistics.data.gov.uk/id/local-authority/32UF,Housing Landlord Manager,Cleaning Contract,28/04/2022,30014519,420.00 ,aAFD services Ltd
South Holland District Council,http://statistics.data.gov.uk/id/local-authority/32UF,Housing Landlord Manager,Cleaning Contract,26/04/2022,30014606,900.00 ,Lilly's Spotless Cleaning Services
South Holland District Council,http://statistics.data.gov.uk/id/local-authority/32UF,Housing Landlord Manager,External Painting Repairs,14/04/2022,30013755,"14,686.06 ",Mitie Property Services UK Ltd
South Holland District Council,http://statistics.data.gov.uk/id/local-authority/32UF,Housing Landlord Manager,External Printing and Design Costs,07/04/2022,30013667,"1,313.00 ",Welland Print Limited
South Holland District Council,http://statistics.data.gov.uk/id/local-authority/32UF,Housing Landlord Manager,External Printing and Design Costs,07/04/2022,30013759,"4,244.00 ",Welland Print Limited
South Holland District Council,http://statistics.data.gov.uk/id/local-authority/32UF,Housing Landlord Manager,Fuel and Oil,07/04/2022,30014185,681.48 ,C H Jones Ltd
South Holland District Council,http://statistics.data.gov.uk/id/local-authority/32UF,Housing Landlord Manager,Fuel and Oil,14/04/2022,30014421,"1,008.44 ",C H Jones Ltd
South Holland District Council,http://statistics.data.gov.uk/id/local-authority/32UF,Housing Landlord Manager,Fuel and Oil,21/04/2022,30014523,852.42 ,C H Jones Ltd
South Holland District Council,http://statistics.data.gov.uk/id/local-authority/32UF,Housing Landlord Manager,Fuel and Oil,28/04/2022,30014788,879.70 ,C H Jones Ltd
South Holland District Council,http://statistics.data.gov.uk/id/local-authority/32UF,Housing Landlord Manager,Furniture and Equipment,05/04/2022,30013537,869.77 ,Stannah
South Holland District Council,http://statistics.data.gov.uk/id/local-authority/32UF,Housing Landlord Manager,Furniture and Equipment,12/04/2022,30013908,"2,127.24 ",BSH
South Holland District Council,http://statistics.data.gov.uk/id/local-authority/32UF,Housing Landlord Manager,Furniture and Equipment,12/04/2022,30013951,"1,155.91 ",Transmissions Bearings Chains Ltd
South Holland District Council,http://statistics.data.gov.uk/id/local-authority/32UF,Housing Landlord Manager,Furniture and Equipment,12/04/2022,30014045,"1,211.52 ",BSH
South Holland District Council,http://statistics.data.gov.uk/id/local-authority/32UF,Housing Landlord Manager,Furniture and Equipment,26/04/2022,30014081,"11,865.60 ",Tunstall Healthcare UK Ltd
South Holland District Council,http://statistics.data.gov.uk/id/local-authority/32UF,Housing Landlord Manager,Furniture and Equipment,26/04/2022,30014082,"13,097.06 ",Tunstall Healthcare UK Ltd
South Holland District Council,http://statistics.data.gov.uk/id/local-authority/32UF,Housing Landlord Manager,Furniture and Equipment,28/04/2022,30014669,"1,458.00 ",Fitzgerald's Bed Centre
South Holland District Council,http://statistics.data.gov.uk/id/local-authority/32UF,Housing Landlord Manager,Furniture and Equipment,28/04/2022,30014682,"1,379.10 ",BSH
South Holland District Council,http://statistics.data.gov.uk/id/local-authority/32UF,Housing Landlord Manager,Grounds Maintenance Contract (External),05/04/2022,30013809,800.00 ,Greenscape Tree Safe Ltd
South Holland District Council,http://statistics.data.gov.uk/id/local-authority/32UF,Housing Landlord Manager,Grounds Maintenance Contract (External),14/04/2022,30014174,"1,950.00 ",Boors Ltd
South Holland District Council,http://statistics.data.gov.uk/id/local-authority/32UF,Housing Landlord Manager,Grounds Maintenance Contract (External),12/04/2022,30014317,690.81 ,Veolia Es UK Ltd
South Holland District Council,http://statistics.data.gov.uk/id/local-authority/32UF,Housing Landlord Manager,Legal Fees,21/04/2022,30014320,432.00 ,Capsticks Solicitors LLP
South Holland District Council,http://statistics.data.gov.uk/id/local-authority/32UF,Housing Landlord Manager,Legal Fees,21/04/2022,30014321,676.00 ,Capsticks Solicitors LLP
South Holland District Council,http://statistics.data.gov.uk/id/local-authority/32UF,Housing Landlord Manager,Legal Fees,21/04/2022,30014322,"8,597.50 ",Capsticks Solicitors LLP
South Holland District Council,http://statistics.data.gov.uk/id/local-authority/32UF,Housing Landlord Manager,Maintenance of Footpaths and Roadways,26/04/2022,30014287,"6,300.00 ",C G Godfrey Ltd
South Holland District Council,http://statistics.data.gov.uk/id/local-authority/32UF,Housing Landlord Manager,Materials and Consumables,14/04/2022,30014449,"2,772.47 ",Gibbs and Dandy
South Holland District Council,http://statistics.data.gov.uk/id/local-authority/32UF,Housing Landlord Manager,Materials and Consumables,19/04/2022,30014459,"4,833.90 ",Gibbs and Dandy
South Holland District Council,http://statistics.data.gov.uk/id/local-authority/32UF,Housing Landlord Manager,Materials and Consumables,19/04/2022,30014460,"2,323.69 ",Gibbs and Dandy
South Holland District Council,http://statistics.data.gov.uk/id/local-authority/32UF,Housing Landlord Manager,Materials and Consumables,19/04/2022,30014462,"2,394.01 ",Gibbs and Dandy
South Holland District Council,http://statistics.data.gov.uk/id/local-authority/32UF,Housing Landlord Manager,Materials and Consumables,19/04/2022,30014463,"3,576.26 ",Gibbs and Dandy
South Holland District Council,http://statistics.data.gov.uk/id/local-authority/32UF,Housing Landlord Manager,Materials and Consumables,19/04/2022,30014464,"2,039.73 ",Gibbs and Dandy
South Holland District Council,http://statistics.data.gov.uk/id/local-authority/32UF,Housing Landlord Manager,Materials and Consumables,19/04/2022,30014465,"5,129.57 ",Gibbs and Dandy
South Holland District Council,http://statistics.data.gov.uk/id/local-authority/32UF,Housing Landlord Manager,Materials and Consumables,19/04/2022,30014466,"2,439.90 ",Gibbs and Dandy
South Holland District Council,http://statistics.data.gov.uk/id/local-authority/32UF,Housing Landlord Manager,Materials and Consumables,28/04/2022,30014467,951.99 ,Grafton Merchanting GB Ltd
South Holland District Council,http://statistics.data.gov.uk/id/local-authority/32UF,Housing Landlord Manager,Professional and Contractors Fees,14/04/2022,30013292,"3,600.00 ",Informed Recruitment Ltd
South Holland District Council,http://statistics.data.gov.uk/id/local-authority/32UF,Housing Landlord Manager,Professional and Contractors Fees,21/04/2022,30013708,495.00 ,NPS Peterborough Ltd
South Holland District Council,http://statistics.data.gov.uk/id/local-authority/32UF,Housing Landlord Manager,Roof Repairs,26/04/2022,30014306,605.00 ,Kev Forman Roofing
South Holland District Council,http://statistics.data.gov.uk/id/local-authority/32UF,Housing Landlord Manager,Roof Repairs,26/04/2022,30014362,"1,650.00 ",Kev Forman Roofing
South Holland District Council,http://statistics.data.gov.uk/id/local-authority/32UF,Housing Landlord Manager,Roof Repairs,28/04/2022,30014643,925.00 ,Kev Forman Roofing
South Holland District Council,http://statistics.data.gov.uk/id/local-authority/32UF,Housing Landlord Manager,Roof Repairs,26/04/2022,30014644,890.00 ,Kev Forman Roofing
South Holland District Council,http://statistics.data.gov.uk/id/local-authority/32UF,Housing Landlord Manager,Roof Repairs,26/04/2022,30014648,840.00 ,Kev Forman Roofing
South Holland District Council,http://statistics.data.gov.uk/id/local-authority/32UF,Housing Landlord Manager,Sewerage Treatment Works,28/04/2022,30014218,"1,580.00 ",Environment Agency
South Holland District Council,http://statistics.data.gov.uk/id/local-authority/32UF,Housing Landlord Manager,Sewerage Treatment Works,28/04/2022,30014219,"8,981.00 ",Environment Agency
South Holland District Council,http://statistics.data.gov.uk/id/local-authority/32UF,Housing Landlord Manager,Sewerage Treatment Works,28/04/2022,30014220,"26,390.00 ",Environment Agency
South Holland District Council,http://statistics.data.gov.uk/id/local-authority/32UF,Housing Landlord Manager,Sewerage Treatment Works,21/04/2022,30014266,"24,718.07 ",C G Godfrey Ltd
South Holland District Council,http://statistics.data.gov.uk/id/local-authority/32UF,Housing Landlord Manager,Void Decoration,05/04/2022,30013920,"3,495.00 ",Park Avenue Recruitment Ltd
South Holland District Council,http://statistics.data.gov.uk/id/local-authority/32UF,Housing Landlord Manager,Void Decoration,19/04/2022,30014265,"2,250.00 ",Boors Ltd
South Holland District Council,http://statistics.data.gov.uk/id/local-authority/32UF,Housing Landlord Manager,Void Repairs,05/04/2022,30014069,975.00 ,Boors Ltd
South Holland District Council,http://statistics.data.gov.uk/id/local-authority/32UF,Housing Landlord Manager,Void Repairs,05/04/2022,30014070,"1,150.00 ",Boors Ltd
South Holland District Council,http://statistics.data.gov.uk/id/local-authority/32UF,Housing Landlord Manager,Void Repairs,05/04/2022,30014074,"1,850.00 ",Boors Ltd
South Holland District Council,http://statistics.data.gov.uk/id/local-authority/32UF,Housing Landlord Manager,Void Repairs,19/04/2022,30014437,420.52 ,andrew Hicks Ltd
South Holland District Council,http://statistics.data.gov.uk/id/local-authority/32UF,Housing Landlord Manager,Void Repairs,19/04/2022,30014440,593.26 ,andrew Hicks Ltd
South Holland District Council,http://statistics.data.gov.uk/id/local-authority/32UF,Housing Landlord Manager,Void Repairs,19/04/2022,30014448,550.00 ,Greenscape Tree Safe Ltd
South Holland District Council,http://statistics.data.gov.uk/id/local-authority/32UF,Housing Landlord Manager,Works to Buildings (Main Contractor),05/04/2022,30013937,"1,712.18 ",Bonsers Restoration Ltd
South Holland District Council,http://statistics.data.gov.uk/id/local-authority/32UF,Housing Landlord Manager,Works to Buildings (Main Contractor),14/04/2022,30014176,"9,345.72 ",C G Godfrey Ltd
South Holland District Council,http://statistics.data.gov.uk/id/local-authority/32UF,Housing Landlord Manager,Works to Buildings (Main Contractor),14/04/2022,30014180,"1,492.04 ",C G Godfrey Ltd
South Holland District Council,http://statistics.data.gov.uk/id/local-authority/32UF,Housing Landlord Manager,Works to Buildings (Main Contractor),14/04/2022,30014181,902.77 ,C G Godfrey Ltd
South Holland District Council,http://statistics.data.gov.uk/id/local-authority/32UF,Housing Landlord Manager,Works to Buildings (Main Contractor),14/04/2022,30014182,"1,568.54 ",C G Godfrey Ltd
South Holland District Council,http://statistics.data.gov.uk/id/local-authority/32UF,Housing Landlord Manager,Works to Buildings (Main Contractor),14/04/2022,30014229,"1,193.50 ",Bonsers Restoration Ltd
South Holland District Council,http://statistics.data.gov.uk/id/local-authority/32UF,Housing Landlord Manager,Works to Buildings (Main Contractor),19/04/2022,30014267,745.73 ,C G Godfrey Ltd
South Holland District Council,http://statistics.data.gov.uk/id/local-authority/32UF,Housing Landlord Manager,Works to Buildings (Main Contractor),28/04/2022,30014270,"25,605.52 ",Hodgson Sayers Ltd
South Holland District Council,http://statistics.data.gov.uk/id/local-authority/32UF,Housing Landlord Manager,Works to Buildings (Main Contractor),28/04/2022,30014271,"68,274.38 ",Hodgson Sayers Ltd
South Holland District Council,http://statistics.data.gov.uk/id/local-authority/32UF,Housing Landlord Manager,Works to Buildings (Main Contractor),14/04/2022,30014283,"2,519.78 ",C G Godfrey Ltd
South Holland District Council,http://statistics.data.gov.uk/id/local-authority/32UF,Housing Landlord Manager,Works to Buildings (Main Contractor),14/04/2022,30014284,553.38 ,C G Godfrey Ltd
South Holland District Council,http://statistics.data.gov.uk/id/local-authority/32UF,Housing Landlord Manager,Works to Buildings (Main Contractor),28/04/2022,30014289,"29,432.42 ",D Brown Building Contractors Ltd
South Holland District Council,http://statistics.data.gov.uk/id/local-authority/32UF,Housing Landlord Manager,Works to Buildings (Main Contractor),19/04/2022,30014290,"23,880.36 ",D Brown Building Contractors Ltd
South Holland District Council,http://statistics.data.gov.uk/id/local-authority/32UF,Housing Landlord Manager,Works to Buildings (Main Contractor),19/04/2022,30014291,"90,251.42 ",D Brown Building Contractors Ltd
South Holland District Council,http://statistics.data.gov.uk/id/local-authority/32UF,Housing Landlord Manager,Works to Buildings (Main Contractor),19/04/2022,30014308,"12,948.58 ",Stuart Taplin Plumbing and Build Maint
South Holland District Council,http://statistics.data.gov.uk/id/local-authority/32UF,Housing Landlord Manager,Works to Buildings (Main Contractor),21/04/2022,30014402,"19,886.34 ",D Brown Building Contractors Ltd
South Holland District Council,http://statistics.data.gov.uk/id/local-authority/32UF,Housing Landlord Manager,Works to Buildings (Main Contractor),21/04/2022,30014407,"69,467.16 ",D Brown Building Contractors Ltd
South Holland District Council,http://statistics.data.gov.uk/id/local-authority/32UF,Housing Landlord Manager,Works to Buildings (Main Contractor),21/04/2022,30014509,"16,412.48 ",J H Smithson and Son Ltd
South Holland District Council,http://statistics.data.gov.uk/id/local-authority/32UF,Housing Landlord Manager,Works to Buildings (Main Contractor),28/04/2022,30014899,"8,183.87 ",D Brown Building Contractors Ltd
South Holland District Council,http://statistics.data.gov.uk/id/local-authority/32UF,HR,Apprenticeship Levy,12/04/2022,30014261,"2,223.00 ",HM Revenue and Customs
South Holland District Council,http://statistics.data.gov.uk/id/local-authority/32UF,HR,Staff Training Expenses (Non-Payroll),26/04/2022,30014689,795.00 ,Stand2
South Holland District Council,http://statistics.data.gov.uk/id/local-authority/32UF,ICT and Customer Services,Computer Software Licence Costs,28/04/2022,30014117,"6,500.00 ",Goss Interactive Ltd
South Holland District Council,http://statistics.data.gov.uk/id/local-authority/32UF,ICT and Customer Services,Telephones,07/04/2022,30012802,"2,202.74 ",British Telecom Corporate Plc
South Holland District Council,http://statistics.data.gov.uk/id/local-authority/32UF,ICT and Customer Services,Telephones,28/04/2022,30014451,"2,020.71 ",Daisy Communications Ltd
South Holland District Council,http://statistics.data.gov.uk/id/local-authority/32UF,Planning,Grants and Contributions to Outside Bodies - No Service Received,19/04/2022,30014445,"42,792.26 ",C G Godfrey Ltd
South Holland District Council,http://statistics.data.gov.uk/id/local-authority/32UF,Public Protection,Fuel and Oil,07/04/2022,30014185,53.00 ,C H Jones Ltd
South Holland District Council,http://statistics.data.gov.uk/id/local-authority/32UF,Public Protection,Fuel and Oil,28/04/2022,30014788,47.05 ,C H Jones Ltd
South Holland District Council,http://statistics.data.gov.uk/id/local-authority/32UF,Public Protection,Legal Fees,05/04/2022,30014086,"1,298.00 ",Maples Solicitors LLP
South Holland District Council,http://statistics.data.gov.uk/id/local-authority/32UF,Public Protection,Legal Fees,05/04/2022,30014087,"5,850.00 ",Maples Solicitors LLP
South Holland District Council,http://statistics.data.gov.uk/id/local-authority/32UF,Public Protection,Legal Fees,14/04/2022,30014088,"9,525.30 ",Maples Solicitors LLP
South Holland District Council,http://statistics.data.gov.uk/id/local-authority/32UF,Public Protection,Professional and Contractors Fees,28/04/2022,30013967,704.00 ,The Oyster Partnership Ltd
South Holland District Council,http://statistics.data.gov.uk/id/local-authority/32UF,Public Protection,Professional and Contractors Fees,28/04/2022,30013968,"1,369.00 ",The Oyster Partnership Ltd
South Holland District Council,http://statistics.data.gov.uk/id/local-authority/32UF,Public Protection,Professional and Contractors Fees,21/04/2022,30014073,612.56 ,PERSONAL INFORMATION REDACTED
South Holland District Council,http://statistics.data.gov.uk/id/local-authority/32UF,Public Protection,Professional and Contractors Fees,19/04/2022,30014285,700.00 ,Robert Murphy Ta Keystone Consultants
South Holland District Council,http://statistics.data.gov.uk/id/local-authority/32UF,Public Protection,Professional and Contractors Fees,19/04/2022,30014286,"2,000.00 ",Robert Murphy Ta Keystone Consultants
South Holland District Council,http://statistics.data.gov.uk/id/local-authority/32UF,SHDC Revenues & Benefits,External Audit Fees,28/04/2022,30014517,"6,425.00 ",KPMG LLP
South Holland District Council,http://statistics.data.gov.uk/id/local-authority/32UF,SHDC Revenues & Benefits,Subscriptions to Organisations and Other Bodies,28/04/2022,30014508,"1,600.00 ",Tameside Metropolitan Borough
South Holland District Council,http://statistics.data.gov.uk/id/local-authority/32UF,South Holland Balance Sheet,CIS Tax,19/04/2022,30014428,"2,153.36 ",HM Revenue and Customs
South Holland District Council,http://statistics.data.gov.uk/id/local-authority/32UF,South Holland Balance Sheet,Un-coded Invoices Suspense Account,26/04/2022,30014662,"2,220.00 ",Park Avenue Recruitment Ltd
South Holland District Council,http://statistics.data.gov.uk/id/local-authority/32UF,South Holland Balance Sheet,Un-coded Invoices Suspense Account,26/04/2022,30014688,"2,521.44 ",Park Avenue Recruitment Ltd
South Holland District Council,http://statistics.data.gov.uk/id/local-authority/32UF,South Holland Balance Sheet,Un-coded Invoices Suspense Account,26/04/2022,30014728,"3,011.48 ",Park Avenue Recruitment Ltd
South Holland District Council,http://statistics.data.gov.uk/id/local-authority/32UF,Spalding Specials,Furniture and Equipment,28/04/2022,30014878,320.00 ,Westons Garden Machinery Ltd
South Holland District Council,http://statistics.data.gov.uk/id/local-authority/32UF,Spalding Specials,Gas,07/04/2022,30013788,500.78 ,British Gas Business
South Holland District Council,http://statistics.data.gov.uk/id/local-authority/32UF,Spalding Specials,Gas,21/04/2022,30014625,508.95 ,British Gas Business
South Holland District Council,http://statistics.data.gov.uk/id/local-authority/32UF,Spalding Specials,Grants and Contributions to Outside Bodies - No Service Received,07/04/2022,30013387,750.00 ,The Parish of St Mary and St Nicholas
South Holland District Council,http://statistics.data.gov.uk/id/local-authority/32UF,Spalding Specials,Grounds Maintenance Contract (External),14/04/2022,30014386,450.00 ,Greenscape Tree Safe Ltd
South Holland District Council,http://statistics.data.gov.uk/id/local-authority/32UF,Spalding Specials,Grounds Maintenance Recharge,14/04/2022,30014386,900.00 ,Greenscape Tree Safe Ltd
South Holland District Council,http://statistics.data.gov.uk/id/local-authority/32UF,Spalding Specials,Maintenance of Footpaths and Roadways,14/04/2022,30014377,"1,008.00 ",South Lincs Plant Hire and Sales Ltd
South Holland District Council,http://statistics.data.gov.uk/id/local-authority/32UF,Town Centre Improvement Plan,Furniture and Equipment,14/04/2022,30014188,"1,000.00 ",JWK Electrical Lincs Ltd
South Holland District Council,http://statistics.data.gov.uk/id/local-authority/32UF,Town Centre Improvement Plan,Professional and Contractors Fees,14/04/2022,30010631,"2,243.01 ",Robert Doughty Consultancy
